[Event "Susha Chess Blitz Women 2022"]
[Site "Shusha"]
[Date "2022.09.24"]
[Round "13"]
[White "Mammadzada, Gunay"]
[Black "Efroimski, Marsel"]
[Result "1-0"]
[ECO "B32"]
[WhiteElo "2473"]
[BlackElo "2462"]
[Annotator "TA"]
[PlyCount "73"]
[EventDate "2022.09.24"]
[EventType "tourn"]
[EventCountry "AZE"]
[SourceTitle "playchess.com"]
[Source "ChessBase"]
[SourceQuality "1"]
[TimeControl "180+2"]

{[%evp 14,73,30,23,31,29,29,29,50,32,81,39,63,65,59,58,80,89,88,87,83,68,93,91,92,90,235,175,116,-11,-11,-18,-10,-24,341,333,317,298,355,164,145,151,628,634,2422,2293,1168,640,4914,4802,5293,787,1218,1098,29981,29982,29982,29983,29982,29983,29979,29980]} 1. e4 c5 2. Nf3 {[%emt 0:00:02]} Nc6 {[%emt 0:00:00]} 3. d4 {[%emt 0:00:03]} cxd4 {[%emt 0:00:01]} 4. Nxd4 {[%emt 0:00:01]} e5 {[%emt 0:00:01]} 5. Nb5 {[%emt 0:00:01]} d6 {[%emt 0:00:01]} 6. N1c3 {[%emt 0:00:01]} a6 {[%emt 0:00:01]} 7. Na3 {[%emt 0:00:01]} Be6 {[%emt 0:00:00]} 8. Nc4 {[%emt 0:00:03]} Rb8 {[%emt 0:00:06] Nowadays more popular than 8...b5. B32: Sicilian: Löwenthal and Kalashnikov Variations.} 9. Ne3 {[%emt 0:00:11]} Nf6 {[%emt 0:00:15]} 10. g3 {[%emt 0:00:08]} Nd4 {[%emt 0:00:10] White has an edge.} 11. Bg2 {[%emt 0:00:03] [#]} Qd7 $146 {[%emt 0:00:10]} (11... Rc8 $14) ({Predecessor:} 11... Rc8 12. O-O Be7 13. f4 O-O 14. f5 Bd7 15. Rf2 Bc6 16. Bd2 b5 17. Ncd5 Bxd5 18. exd5 {1-0 (60) Duda,J (2411)-Paravyan,D (2271) Prague 2012}) 12. h4 {[%emt 0:01:01]} g6 {[%emt 0:00:30]} 13. Ncd5 {[%emt 0:00:07]} Bxd5 {[%emt 0:00:05]} 14. exd5 {[%emt 0:00:01]} ({But not} 14. Nxd5 Nxd5 15. c3 Nxc3 $1 16. bxc3 Ne6 $15) 14... Bg7 {[%emt 0:00:31]} 15. c3 {[%emt 0:00:19]} Nb5 {[%emt 0:00:01]} 16. a4 {[%emt 0:00:27]} Nc7 {[%emt 0:00:01]} 17. h5 {[%emt 0:00:34]} Nxh5 {[%emt 0:00:10]} 18. Rxh5 {[%emt 0:00:00]} gxh5 {[%emt 0:00:02]} 19. Qxh5 {[%emt 0:00:03] And now Nf5 would win.} Bf6 {[%emt 0:00:47]} (19... Kf8 $16) 20. Bh3 {[%emt 0:00:08]} Qd8 {[%emt 0:00:02]} 21. Be6 {[%emt 0:00:14] White is much more active.} (21. Nf5 $16) 21... Nxe6 $11 {[%emt 0:00:04]} 22. dxe6 {[%emt 0:00:01][%csl Ge6][%cal Rh5f7]} O-O {[%emt 0:00:16]} 23. e7 {[%emt 0:00:09]} Qxe7 {[%emt 0:00:05][%mdl 8192]} (23... Bxe7 $11 {and Black is okay.} 24. Nf5 Kh8) 24. Nf5 $18 {[%emt 0:00:03]} Qe6 {[%emt 0:00:05]} 25. Bh6 {[%emt 0:00:01]} Kh8 {[%emt 0:00:08] [#] ...Rg8 is the strong threat.} 26. Bxf8 {[%emt 0:00:03]} (26. O-O-O $142 $1 Rfd8 27. Kc2) 26... Rxf8 {[%emt 0:00:01]} 27. O-O-O $40 {[%emt 0:00:02][%mdl 128] White wants a kill.} d5 {[%emt 0:00:07]} (27... Rg8 $16 28. Nxd6 Rg7) 28. Rh1 {[%emt 0:00:02][%csl Gh1][%cal Rh5h7]} Bg5+ {[%emt 0:00:08]} 29. Qxg5 {[%emt 0:00:04][%csl Gf5][%cal Rg5g7]} Qg6 {[%emt 0:00:01] Prevents Qg7+.} 30. Rh5 {[%emt 0:00:05][%cal Og5e7] Black must now prevent Qe7!} Rg8 {[%emt 0:00:08]} 31. Qh4 {[%emt 0:00:03] Intending Ne7 and mate.} Re8 {[%emt 0:00:04]} 32. Ne3 {[%emt 0:00:01]} (32. Rg5 $142 Qb6 33. Rg7) 32... d4 {[%emt 0:00:01]} 33. Nd5 {[%emt 0:00:01] Nf6 would kill now.} d3 {[%emt 0:00:02]} 34. Nf6 {[%emt 0:00:01] White mates.} d2+ {[%emt 0:00:03]} 35. Kxd2 {[%emt 0:00:01]} Rd8+ {[%emt 0:00:00]} 36. Kc1 {[%emt 0:00:03]} Kg7 37. Rxh7+ {[%emt 0:00:01] Weighted Error Value: White=0.50/Black=0.98} 1-0

[Event "Susha Chess Blitz Women 2022"]
[Site "Shusha"]
[Date "2022.09.24"]
[Round "13"]
[White "Arabidze, Meri"]
[Black "Balajayeva, Khanim"]
[Result "1-0"]
[ECO "A06"]
[WhiteElo "2422"]
[BlackElo "2379"]
[Annotator "TA"]
[PlyCount "137"]
[EventDate "2022.09.24"]
[EventType "tourn"]
[EventCountry "AZE"]
[SourceTitle "playchess.com"]
[Source "ChessBase"]
[SourceQuality "1"]
[TimeControl "180+2"]

{[%evp 18,137,19,9,9,-19,5,0,0,-21,13,-16,-15,-25,-27,-26,-22,-20,-12,-24,-15,-25,-29,-67,22,17,27,25,25,10,120,79,152,143,162,165,169,171,170,166,165,140,135,53,57,56,56,52,379,382,356,364,372,314,430,312,345,319,317,0,336,306,583,562,562,370,364,359,352,339,379,397,392,370,446,428,517,505,479,397,567,458,743,517,732,589,2773,2674,1852,398,552,526,577,525,933,844,925,998,872,808,1696,1427,2318,2482,2272,2184,12837,12837,12839,2323,12841,12841,12838,3785,1642,0,12837,2532,12840,12841,12841,12842]} 1. Nf3 {[%emt 0:00:03]} d5 {[%emt 0:00:00]} 2. g3 {[%emt 0:00:01]} Nf6 {[%emt 0:00:01]} 3. Bg2 {[%emt 0:00:01]} Bf5 {[%emt 0:00:01]} 4. O-O {[%emt 0:00:04]} c6 {[%emt 0:00:01]} 5. d3 {[%emt 0:00:04]} e6 {[%emt 0:00:04]} 6. Nbd2 {[%emt 0:00:05]} h6 {[%emt 0:00:01]} 7. Qe1 {[%emt 0:00:03]} Be7 {[%emt 0:00:04]} 8. e4 {[%emt 0:00:02]} Bh7 {[%emt 0:00:01]} 9. Qe2 {[%emt 0:00:06]} O-O {[%emt 0:00:04]} 10. b3 {[%emt 0:00:17] The main line 10.b3 scores better than 10.Re1.} a5 {[%emt 0:00:02] A07: Réti Opening: New York and Capablanca Systems.} 11. a3 {[%emt 0:00:12]} c5 {[%emt 0:00:51]} 12. Re1 {[%emt 0:00:10]} Nc6 {[%emt 0:00:01] The position is equal.} 13. Bb2 {[%emt 0:00:23]} a4 {[%emt 0:00:08] [#]} 14. Ne5 $146 {[%emt 0:00:33]} ({Predecessor:} 14. exd5 exd5 15. bxa4 Rxa4 16. Rab1 b5 17. Ne5 Nxe5 18. Bxe5 Qd7 19. Nb3 Rxa3 20. Bd4 {1-0 (64) Vorobiov,E (2585)-Geller,J (2549) Pardubice 2013}) 14... axb3 {[%emt 0:00:13]} 15. Nxc6 {[%emt 0:00:06]} bxc6 {[%emt 0:00:02]} 16. cxb3 {[%emt 0:00:06]} Qc7 {[%emt 0:00:14]} 17. Rec1 {[%emt 0:00:04]} Qb7 {[%emt 0:00:05]} 18. a4 {[%emt 0:00:03]} Rfb8 {[%emt 0:00:03]} 19. Ba3 {[%emt 0:00:02]} Nd7 {[%emt 0:00:07]} 20. d4 {[%emt 0:00:08]} Qa7 {[%emt 0:00:15]} (20... Bf6 $15 21. e5 Bd8 22. Bxc5 (22. dxc5 Ba5 $17) 22... Nxc5 23. dxc5 (23. Rxc5 Bb6 $17) 23... Ra5) 21. exd5 {[%emt 0:00:11]} (21. dxc5 {is interesting.} Bxc5 22. Bxc5 Nxc5 23. Qe3) 21... cxd5 {[%emt 0:00:13]} 22. Bxd5 {[%emt 0:00:15]} exd5 {[%emt 0:00:01]} 23. Qxe7 {[%emt 0:00:00][%cal Ra3c5]} cxd4 {[%emt 0:00:07]} (23... Re8 $11 24. Qd6 Re2) 24. Qd6 {[%emt 0:00:02] Hoping for Rc7.} Nf6 {[%emt 0:00:09] [#]} (24... Rc8 $142) 25. Bc5 $1 $16 {[%emt 0:00:15]} Qb7 {[%emt 0:00:03]} (25... Qa5 $2 26. b4 Qd8 27. Qxd8+ Rxd8 28. Bxd4) 26. Bxd4 {[%emt 0:00:11]} Ne4 {[%emt 0:00:07]} 27. Nxe4 {[%emt 0:00:01]} Bxe4 {[%emt 0:00:01]} 28. Rc7 {[%emt 0:00:12]} Qa6 {[%emt 0:00:23]} 29. Qe5 {[%emt 0:00:07][%csl Gd4][%cal Re5g7] Dancing on a razor blade.} Qg6 {[%emt 0:00:01]} 30. Rc6 $40 {[%emt 0:00:08][%mdl 128] White attacks. White is much more active.} f6 $14 {[%emt 0:00:11]} 31. Qe6+ {[%emt 0:00:01]} Kh7 {[%emt 0:00:02]} 32. Rc7 {[%emt 0:00:02] Black must now prevent f3.} Re8 $2 {[%emt 0:00:04][%mdl 8192]} (32... Rxb3 $14 33. Qxf6 Qxf6 34. Bxf6 Kg6 35. Bxg7 Rxa4) 33. Qxf6 $1 $18 {[%emt 0:00:03]} Qxf6 {[%emt 0:00:03]} 34. Bxf6 {[%emt 0:00:01]} Kg6 35. Bxg7 {[%emt 0:00:02]} Rab8 {[%emt 0:00:03]} 36. Bd4 {[%emt 0:00:05] Rg7+ is the strong threat.} Rxb3 {[%emt 0:00:01]} 37. Rc6+ {[%emt 0:00:03]} Kh7 {[%emt 0:00:02]} 38. Rc7+ {[%emt 0:00:01]} Kg6 {[%emt 0:00:00]} 39. a5 {[%emt 0:00:01]} Reb8 $2 {[%emt 0:00:02]} (39... Rb4 {was called for.} 40. Rc6+ Kf7) 40. Rc6+ {[%emt 0:00:01]} Kh7 {[%emt 0:00:03]} 41. Rcc1 {[%emt 0:00:01]} R3b4 {[%emt 0:00:05]} 42. Bc5 {[%emt 0:00:01]} Rc4 43. a6 {[%emt 0:00:03]} Ra8 {[%emt 0:00:08][%cal Oa8a6]} 44. a7 {[%emt 0:00:01]} Kg6 {[%emt 0:00:03]} 45. Bb6 {[%emt 0:00:05]} Bf5 {[%emt 0:00:05]} 46. h4 {[%emt 0:00:01]} Bc8 {[%emt 0:00:02]} 47. Rxc4 {[%emt 0:00:02]} dxc4 {[%mdl 4096] Endgame KRB-KRB} 48. Rc1 {[%emt 0:00:02]} Ba6 {[%emt 0:00:04]} (48... Be6 $142 49. f4 Bd5) 49. f4 {[%emt 0:00:02]} Rc8 {[%emt 0:00:02]} (49... Kf5 $142 50. Kf2 Bb5) 50. Kf2 {[%emt 0:00:02]} Kf5 {[%emt 0:00:04] [#]} 51. Bc7 $1 {[%emt 0:00:02][%mdl 512]} Ke4 {[%emt 0:00:05]} (51... Bb7 52. Rxc4) 52. Bb8 {[%emt 0:00:01]} Bb7 {[%emt 0:00:00]} 53. Rc3 $2 {[%emt 0:00:03]} (53. Rb1 Ba8 54. Bd6) 53... Kd4 {[%emt 0:00:03]} 54. Be5+ {[%emt 0:00:02]} Ke4 {[%emt 0:00:00]} 55. g4 {[%emt 0:00:02]} Ba8 {[%emt 0:00:04]} 56. g5 {[%emt 0:00:03]} hxg5 57. hxg5 Kf5 {[%emt 0:00:02]} 58. Ke3 {[%emt 0:00:01] aiming for Kd4.} Bd5 {[%emt 0:00:04]} 59. Kd4 {[%emt 0:00:01]} Ba8 {[%emt 0:00:04]} 60. Rxc4 {[%emt 0:00:01]} Rd8+ {[%emt 0:00:01]} 61. Kc3 {[%emt 0:00:01]} Rd7 {[%emt 0:00:02]} 62. Rc7 {[%emt 0:00:05]} Rd1 {[%emt 0:00:04]} 63. Kb2 {[%emt 0:00:03]} Be4 {[%emt 0:00:04]} 64. Rf7+ {[%emt 0:00:01]} Kg6 {[%emt 0:00:02]} 65. Rg7+ {[%emt 0:00:01]} Kf5 {[%emt 0:00:01]} 66. Rf7+ {[%emt 0:00:01]} Kg6 $1 {[%emt 0:00:01]} 67. Rf8 {[%emt 0:00:01] White is clearly winning.} Rb1+ {[%emt 0:00:06]} 68. Ka2 {[%emt 0:00:01]} Rb5 {[%emt 0:00:04]} 69. a8=Q {[%emt 0:00:02] Weighted Error Value: White=0.38/Black=0.45} 1-0

[Event "Susha Chess Blitz Women 2022"]
[Site "Shusha"]
[Date "2022.09.24"]
[Round "13"]
[White "Mammadova, Gulnar"]
[Black "Zawadzka, Jolanta"]
[Result "1-0"]
[ECO "B47"]
[WhiteElo "2382"]
[BlackElo "2401"]
[Annotator "TA"]
[PlyCount "59"]
[EventDate "2022.09.24"]
[EventType "tourn"]
[EventCountry "AZE"]
[SourceTitle "playchess.com"]
[Source "ChessBase"]
[SourceQuality "1"]
[TimeControl "180+2"]

{[%evp 18,59,25,21,33,-60,-77,-75,199,57,90,89,164,162,150,122,139,147,131,0,0,0,14,0,0,0,30,0,225,216,279,286,279,-182,810,270,356,356,931,900,29991,29992,29992,29993]} 1. e4 {[%emt 0:00:02]} c5 {[%emt 0:00:00]} 2. Nf3 {[%emt 0:00:01]} e6 {[%emt 0:00:01]} 3. d4 {[%emt 0:00:01]} cxd4 {[%emt 0:00:01]} 4. Nxd4 {[%emt 0:00:02]} Nc6 {[%emt 0:00:01]} 5. Nc3 {[%emt 0:00:02]} Qc7 {[%emt 0:00:01]} 6. f4 {[%emt 0:00:02]} a6 {[%emt 0:00:03]} 7. Nxc6 {[%emt 0:00:01]} Qxc6 {[%emt 0:00:02]} 8. Bd3 {[%emt 0:00:02]} b5 {[%emt 0:00:02][%cal Bb7b5,Bb5b4][%mdl 32]} 9. Qe2 {[%emt 0:00:02]} Bb7 {[%emt 0:00:02]} 10. Bd2 {[%emt 0:00:03]} Rc8 {[%emt 0:00:01] B47: Sicilian: Taimanov: 5 Nc3 Qc7 6 f4, 6 g3 and 6 Be2.} 11. O-O-O {[%emt 0:00:03]} ({Better is} 11. a3 $14) 11... b4 $1 $15 {[%emt 0:00:27]} 12. Nd5 {[%emt 0:00:03][%cal Oc1b1]} a5 $2 {[%emt 0:00:42][%mdl 8192]} (12... Qa4 $1 $17 {keeps the pressure on. Hoping for ...b3.} 13. c4 exd5 14. exd5+ Kd8) 13. Kb1 {[%emt 0:00:02]} ({White should play} 13. Be1 $18) 13... Ne7 {[%emt 0:00:03] [#]} 14. Ne3 $146 {[%emt 0:00:32] White is more active.} ({Predecessor:} 14. Nxe7 Bxe7 15. h4 O-O 16. h5 a4 17. g4 b3 18. cxb3 axb3 19. a3 Qa4 20. Rc1 {0-1 (68) Kevlishvili,R (2417)-Spoelman,W (2584) Chess.com INT 2017}) 14... Ng6 {[%emt 0:00:19]} (14... Qc7 $16) 15. Rhf1 $18 {[%emt 0:00:32]} Qc7 {[%emt 0:00:15]} 16. g3 {[%emt 0:00:40]} Bc5 {[%emt 0:00:01]} 17. h4 $1 {[%emt 0:00:07]} O-O {[%emt 0:00:06]} 18. e5 {[%emt 0:00:05]} (18. h5 $1 $16 {[%cal Rh5g6]}) 18... Ne7 $11 {[%emt 0:00:07]} 19. h5 {[%emt 0:00:10]} a4 {[%emt 0:00:10]} 20. f5 {[%emt 0:00:08]} Qxe5 {[%emt 0:00:21] ...a3 is the strong threat.} 21. f6 {[%emt 0:00:10][%cal Oe2g4] And now Qg4! would win.} gxf6 {[%emt 0:00:21]} (21... a3 $5 22. Bc1 gxf6 $11) 22. Qg4+ {[%emt 0:00:08]} Kh8 $2 {[%emt 0:00:03]} (22... Qg5 $11 {and Black stays safe.} 23. Rxf6 Bxe3 24. Qxg5+ Bxg5 25. Bxg5 Nd5) 23. Nc4 $18 {[%emt 0:00:02] Chess con chili.} (23. h6 Rg8 24. Qh4 Ng6 25. Qxf6+ Qxf6 26. Rxf6 Ne5 $19) 23... f5 {[%emt 0:00:24] [#]} 24. Qh4 $1 {[%emt 0:00:08]} ({Less strong is} 24. Nxe5 fxg4 25. Nxd7 Bf3 $16) 24... Qg7 {[%emt 0:00:05] aiming for ...f6.} 25. g4 $4 {[%emt 0:00:18][%mdl 8192]} (25. h6 $18 Qd4 26. Rf4 (26. Qxd4+ Bxd4 27. Bxb4 Bc5 $17)) 25... d5 $4 {[%emt 0:00:01][%mdl 8192]} (25... fxg4 $2 26. h6 Qd4 27. Be3 $18) (25... Qxg4 $19 26. Qxg4 fxg4) 26. gxf5 $2 {[%emt 0:00:02]} (26. h6 Qd4 27. Be3) 26... Nxf5 {[%emt 0:00:05]} ({Not} 26... dxc4 27. f6 Qg2 28. fxe7 Bxe7 29. Qxe7 cxd3 30. cxd3 $16) 27. Bxf5 {[%emt 0:00:04] Threatens to win with h6.} exf5 $2 {[%emt 0:00:03] [#]} (27... dxc4 28. h6 Qe5 29. Rde1 $18) (27... h6) 28. h6 $1 {[%emt 0:00:06]} Qg4 {[%emt 0:00:03]} 29. Qf6+ {[%emt 0:00:01]} Kg8 {[%emt 0:00:01] [#]} 30. Bg5 $1 {[%emt 0:00:04] Weighted Error Value: White=0.88/Black=0.83} 1-0

[Event "Susha Chess Blitz Women 2022"]
[Site "Shusha"]
[Date "2022.09.24"]
[Round "13"]
[White "Ozturk Orenli, Kubra"]
[Black "Beydullayeva, Govhar"]
[Result "0-1"]
[ECO "A40"]
[WhiteElo "2319"]
[BlackElo "2346"]
[Annotator "TA"]
[PlyCount "114"]
[EventDate "2022.09.24"]
[EventType "tourn"]
[EventCountry "AZE"]
[SourceTitle "playchess.com"]
[Source "ChessBase"]
[SourceQuality "1"]
[TimeControl "180+2"]

{[%evp 18,114,12,0,0,-13,31,18,39,-60,-61,-55,-72,-76,-23,-32,-33,-32,65,67,66,73,57,58,154,155,154,114,135,85,85,63,40,50,94,91,122,104,159,66,120,52,46,37,93,-9,6,-6,488,488,479,427,467,454,428,-129,-127,-114,-116,-992,-956,-2497,-2587,-2183,-1854,-2483,-2231,-1718,-1091,-2252,-2170,-1543,-1464,-3925,-3171,-2096,0,0,0,-29980,-29974,-29988,-6087,-29975,-29972,-5302,-1413,-5293,-5165,-29987,-29988,-29988,-29989,-29989,-29990,-29990,-29991,-29991,-29992]} 1. d4 {[%emt 0:00:01]} Nf6 {[%emt 0:00:00]} 2. c4 {[%emt 0:00:03]} e6 {[%emt 0:00:01]} 3. g3 d5 4. Nf3 {[%emt 0:00:10]} Bb4+ {[%emt 0:00:02]} 5. Bd2 {[%emt 0:00:01]} Be7 {[%emt 0:00:01]} 6. Bg2 {[%emt 0:00:02]} c6 {[%emt 0:00:01]} 7. O-O {[%emt 0:00:26]} Nbd7 {[%emt 0:00:00]} 8. Qc2 {[%emt 0:00:04]} b6 {[%emt 0:00:01]} 9. b3 {[%emt 0:00:07]} Ba6 {[%emt 0:00:00] 9...Bb7 is setting a new trend.} 10. Bf4 {[%emt 0:00:12]} Rc8 {[%emt 0:00:17] E15: Queen's Indian: 4 g3 sidelines, 4 g3 Ba6 and 4 g3 Bb7 early deviations.} 11. Nc3 {[%emt 0:00:53][%cal Bb1c3,Bc3e4,Be4d6][%mdl 32] [#]} dxc4 $146 {[%emt 0:00:06]} ({Predecessor:} 11... O-O 12. Rfd1 Re8 13. e4 dxc4 14. Nd2 b5 15. bxc4 bxc4 16. Na4 c5 17. d5 exd5 18. exd5 {½-½ (36) Ehlvest,J (2610)-Almasi,Z (2669) Moscow 2007}) 12. bxc4 {[%emt 0:00:17]} Bxc4 {[%emt 0:00:01] The position is equal.} 13. Ne5 {[%emt 0:00:55]} ({White must play} 13. Nd2 $1 $14 b5 14. Nxc4 bxc4 15. e4) 13... Nxe5 $15 {[%emt 0:00:07]} 14. dxe5 {[%emt 0:00:01]} Nd5 {[%emt 0:00:07]} 15. Rfd1 {[%emt 0:00:04]} Qc7 {[%emt 0:00:12]} (15... O-O $17) 16. Ne4 $11 {[%emt 0:00:02] Strongly threatening Nd6+.} Nxf4 {[%emt 0:00:34]} 17. gxf4 {[%emt 0:00:01]} Bd5 {[%emt 0:00:01]} (17... b5 $15) 18. Nd6+ $1 $14 {[%emt 0:00:03]} Bxd6 {[%emt 0:00:03]} 19. exd6 {[%emt 0:00:01]} Qxd6 {[%emt 0:00:21]} 20. e4 {[%emt 0:00:01] Inhibits f5.} Qxf4 {[%emt 0:00:01]} (20... O-O $14) 21. exd5 $16 {[%emt 0:00:01]} exd5 {[%emt 0:00:02]} 22. Bxd5 {[%emt 0:00:14]} O-O {[%emt 0:00:02]} 23. Bg2 {[%emt 0:00:01]} (23. Bxc6 $142 Qg5+ 24. Kh1) 23... c5 {[%emt 0:00:08]} 24. Rd3 {[%emt 0:00:04]} c4 {[%emt 0:00:06]} 25. Rf3 {[%emt 0:00:01]} Qg5 {[%emt 0:00:08]} 26. Rg3 $40 {[%emt 0:00:02][%mdl 128] White goes for the king.} Qf6 {[%emt 0:00:01] [#]} 27. Qc3 {[%emt 0:00:01]} Qh6 {[%emt 0:00:18]} (27... Qxc3 $142 28. Rxc3 b5) 28. Kh1 {[%emt 0:00:05]} (28. a4 $16) 28... Rfd8 {[%emt 0:00:14]} (28... g6 $14) 29. Rg1 {[%emt 0:00:01]} ({White should play} 29. Re1 $16) 29... g6 $14 {[%emt 0:00:04]} 30. Re3 {[%emt 0:00:04]} Qf4 {[%emt 0:00:19]} ({Black should try} 30... Qg7 $14) 31. Rf3 {[%emt 0:00:02]} (31. Rge1 $16) 31... Qd2 {[%emt 0:00:07]} 32. Qf6 Qd7 {[%emt 0:00:09][%mdl 8192]} (32... Rc7 $11) 33. Bh3 $18 {[%emt 0:00:04] White wants to mate with Rxg6+.} Qd5 {[%emt 0:00:08]} 34. Bxc8 {[%emt 0:00:02]} Rxc8 {[%emt 0:00:00]} 35. Re1 {[%emt 0:00:02]} c3 {[%emt 0:00:03]} 36. Qf4 $2 {[%emt 0:00:03]} (36. Kg1 $18) 36... c2 $17 {[%emt 0:00:02]} 37. Kg2 {[%emt 0:00:01] [#]} g5 {[%emt 0:00:02][%cal Bg6g5,Bg5g4][%mdl 32] Black is more active.} 38. Qe3 {[%emt 0:00:02][%mdl 8192]} (38. Qf5 $17 Qxf5 39. Rxf5) 38... g4 $19 {[%emt 0:00:03][%mdl 64] Pin} 39. Qc1 {[%emt 0:00:02]} Qxf3+ {[%mdl 4096] Endgame KQR-KQR} 40. Kg1 Qc3 {[%emt 0:00:12][%cal Oc3e1]} 41. Re3 {[%emt 0:00:03]} Qd4 {[%emt 0:00:05] ( -> ...Qd1+)} 42. Re1 {[%emt 0:00:01] Prevents Qd1.} Qf6 {[%emt 0:00:08] White must now prevent ...h5.} 43. Re2 {[%emt 0:00:01]} Qf5 {[%emt 0:00:03] Hoping for ...h5.} 44. Rd2 {[%emt 0:00:02]} b5 {[%emt 0:00:03]} 45. a3 {[%emt 0:00:01]} a5 {[%emt 0:00:01] And now ...b4 would win.} 46. Rd4 {[%emt 0:00:02] Against b4} Qf3 $2 {[%emt 0:00:04]} ({Better is} 46... h5 $19 {[%cal Ob5b4] aiming for ...b4!} 47. Kg2 b4) 47. Qg5+ $11 {[%emt 0:00:01]} Kh8 {[%emt 0:00:01]} 48. Qc1 $2 {[%emt 0:00:02][%mdl 8192]} (48. Rd8+ $11 Rxd8 49. Qxd8+ Kg7 50. Qg5+ Kh8 51. Qd8+ Kg7 52. Qg5+ Kh8 53. Qd8+) 48... Qc3 {[%emt 0:00:03]} 49. Rxg4 {[%emt 0:00:03]} Rg8 {[%emt 0:00:03]} (49... Qf3 $142 50. h3 Qd1+ 51. Qxd1 cxd1=Q+ 52. Kg2 Rc1 53. Kg3 Rc3+ 54. Kh2 Qf3 55. Rg3 Qxf2+ 56. Rg2 Qf4+ 57. Kh1 Rxh3+ 58. Kg1 Qf3 59. Rg8+ Kxg8 60. a4 Rh1#) 50. Rg3 {[%emt 0:00:01]} Rxg3+ 51. hxg3 {[%emt 0:00:01] KQ-KQ} Qd3 {[%emt 0:00:03]} (51... b4 $142 52. axb4 axb4) 52. Kg2 {[%emt 0:00:03]} Qd1 {[%emt 0:00:01]} 53. Qf4 {[%emt 0:00:01]} c1=Q {[%emt 0:00:02][%csl Gc1][%cal Rd1h1] Black mates.} 54. Qe5+ {[%emt 0:00:01]} Kg8 {[%emt 0:00:01][%csl Gc1][%cal Rd1h1]} 55. Qe8+ {[%emt 0:00:01]} Kg7 {[%emt 0:00:02][%csl Gc1][%cal Rd1h1]} 56. Qe5+ {[%emt 0:00:01]} Kg6 {[%emt 0:00:00][%csl Gc1][%cal Rd1h1]} 57. Qe4+ {[%emt 0:00:02]} Kf6 {[%emt 0:00:01] Weighted Error Value: White=0.90/Black=0.67} 0-1

[Event "Susha Chess Blitz Women 2022"]
[Site "Shusha"]
[Date "2022.09.24"]
[Round "14"]
[White "Efroimski, Marsel"]
[Black "Mammadzada, Gunay"]
[Result "1/2-1/2"]
[ECO "B50"]
[WhiteElo "2462"]
[BlackElo "2473"]
[Annotator "TA"]
[PlyCount "41"]
[EventDate "2022.09.24"]
[EventType "tourn"]
[EventCountry "AZE"]
[SourceTitle "playchess.com"]
[Source "ChessBase"]
[SourceQuality "1"]
[TimeControl "180+2"]

{[%evp 9,41,0,0,12,4,-21,-23,-22,-31,-31,-22,-35,-33,-47,-37,-29,0,-8,0,-104,-99,-98,-45,-54,0,0,0,0,0,0,0,0,0,0]} 1. e4 {[%emt 0:00:00]} c5 {[%emt 0:00:02]} 2. Nf3 {[%emt 0:00:01][%cal Bg1f3,Bf3e5,Be5c4][%mdl 32]} d6 {[%emt 0:00:01]} 3. Nc3 {[%emt 0:00:01]} Nf6 {[%emt 0:00:02]} 4. e5 {[%emt 0:00:00]} dxe5 {[%emt 0:00:02]} 5. Nxe5 {[%emt 0:00:01]} a6 {[%emt 0:00:12]} 6. g3 {[%emt 0:00:01] B50: Sicilian: 2...d6, Miscellaneous.} Qd6 $1 {[%emt 0:00:02][%mdl 4] is recently more successful than 6...Qc7.} 7. Nc4 {[%emt 0:00:04]} Qc6 {[%emt 0:00:02]} 8. Rg1 {[%emt 0:00:06] Black has an edge.} Bg4 {[%emt 0:00:05]} 9. Be2 {[%emt 0:00:02]} h5 {[%emt 0:00:27]} 10. Ne5 {[%emt 0:00:45] [#]} Qd6 $146 {[%emt 0:00:18]} ({Predecessor:} 10... Qe6 11. d4 cxd4 12. Qxd4 Bxe2 13. Nxe2 Nc6 14. Nxc6 Qxc6 15. Qc3 Qxc3+ 16. Nxc3 Rc8 {1-0 (47) Abdusattorov,N (2627)-Yuan,Q (2373) Chess.com INT 2021}) 11. Nxg4 {[%emt 0:00:09]} hxg4 {[%emt 0:00:01]} 12. Bxg4 {[%emt 0:00:02]} Rxh2 {[%emt 0:00:11] [#] Strongly threatening ...Qd4.} 13. Bf3 $1 {[%emt 0:00:18]} Nc6 {[%emt 0:00:26]} 14. Bxc6+ {[%emt 0:00:02]} (14. d3 $11) 14... Qxc6 $17 {[%emt 0:00:01]} 15. d3 {[%emt 0:00:05]} O-O-O {[%emt 0:00:19]} (15... c4 $17 16. dxc4 Rd8) 16. Qe2 {[%emt 0:00:17]} Rh1 {[%emt 0:00:44]} (16... c4 $15) 17. Rxh1 $11 {[%emt 0:00:03] The position is equal.} Qxh1+ {[%emt 0:00:01]} 18. Qf1 {[%emt 0:00:01]} Qf3 {[%emt 0:00:12]} 19. Qe2 {[%emt 0:00:02]} Qh1+ {[%emt 0:00:03]} 20. Qf1 {[%emt 0:00:01]} Qf3 {[%emt 0:00:07]} 21. Qe2 {[%emt 0:00:39] Weighted Error Value: White=0.16 (very precise) /Black=0.11 (very precise)} 1/2-1/2